lending/lending_fUSD_20260310
["ID","MTS","AMOUNT","RATE_DAILY","PERIOD"]
[408123622,1773160238404,-314.31085152,0.00016822,2]
[408123623,1773160238416,-1343.82,0.00016822,2]
[408123624,1773160238427,-836.99464944,0.00016822,2]
[408123625,1773160238438,-390.62,0.00016822,2]
[408123626,1773160238456,-4277.54192495,0.00016822,2]
[408123627,1773160238468,-682598.3281259,0.00016822,2]
[408123628,1773160238477,-234.81595298,0.00016873,2]
[408123629,1773160238487,-500.0,0.00016873,2]
[408123630,1773160238498,-500.0,0.00016873,2]
[408123631,1773160238507,-500.0,0.00016873,2]
[408123632,1773160238517,-500.0,0.00016873,2]
[408123633,1773160238526,-500.0,0.00016873,2]
[408123634,1773160238535,-500.0,0.00016873,2]
[408123635,1773160238547,-500.0,0.00016873,2]
[408123636,1773160238556,-500.0,0.00016873,2]
[408123637,1773160238567,-500.0,0.00016873,2]
[408123638,1773160238578,-500.0,0.00016873,2]
[408123639,1773160238587,-500.0,0.00016873,2]
[408123640,1773160238597,-1000.0,0.000169,6]
[408123641,1773160238606,-3087.04,0.00016922,2]
[408123642,1773160238616,-150.99,0.00016922,2]
[408123643,1773160238626,-300.0,0.00017,2]
[408123644,1773160238636,-510.0,0.00017,2]
[408123645,1773160238646,-11694.20890913,0.00017044,2]
[408123646,1773160238656,-14486.38173995,0.0001709,2]
[408123647,1773160238665,-1123.07,0.00017095,2]
[408123648,1773160238675,-5317.17,0.00017161,2]
[408123649,1773160238684,-1234.14,0.00017161,2]
[408123650,1773160238693,-166.57,0.00017161,2]
[408123651,1773160238703,-150.0,0.00017161,2]
[408123652,1773160238713,-3810.42098742,0.00017181,2]
[408123653,1773160238723,-503.69,0.00017299,2]
[408123654,1773160238733,-11694.20890913,0.00017367,2]
[408123655,1773160238742,-1123.07,0.00017369,2]
[408123656,1773160238751,-14486.38173995,0.00017407,2]
[408123657,1773160238760,-1026.17740878,0.00017421,2]
[408123658,1773160238770,-500.0,0.00017421,2]
[408123659,1773160238779,-492.30019781,0.00017421,2]
[408123660,1773160238789,-1000.0,0.00017421,2]
[408123661,1773160238801,-1000.0,0.00017421,2]
[408123662,1773160238810,-1000.0,0.00017421,2]
[408123663,1773160238820,-1000.0,0.00017421,2]
[408123664,1773160238830,-1000.0,0.00017421,2]
[408123665,1773160238839,-246.69,0.00017466,2]
[408123666,1773160238849,-3810.42098742,0.00017588,2]
[408123667,1773160238858,-1212.3705941,0.000176,2]
[408123668,1773160238870,-935.0,0.0001762,2]
[408123669,1773160238880,-1123.07,0.00017643,2]
[408123670,1773160238892,-11694.20890913,0.00017689,2]
[408123671,1773160238901,-14486.38173995,0.00017724,2]
[408123672,1773160238911,-800.0,0.00017808,2]
[408123673,1773160238921,-1600.0,0.00017829,2]
[408123674,1773160238931,-808.55285723,0.00017853,2]
[408123675,1773160238941,-1000.0,0.00017863,2]
[408123676,1773160238951,-32923.6528,0.00017863,2]
[408123677,1773160238960,-386.81588856,0.000179,2]
[408123678,1773160238970,-386.81588855,0.000179,2]
[408123679,1773160238979,-386.81588855,0.000179,2]
[408123680,1773160238988,-386.81588855,0.000179,2]
[408123681,1773160238998,-2100.0,0.000179,6]
[408123682,1773160239009,-1123.07,0.00017917,2]
[408123683,1773160239019,-172.91703981,0.00017934,2]
[408123684,1773160239029,-160.0,0.00017934,2]
[408123686,1773160239038,-500.0,0.00017963,2]
[408123688,1773160239047,-500.0,0.00017963,2]
[408123690,1773160239057,-551.6181156,0.00017963,2]
[408123692,1773160239066,-587.0,0.00017966,2]
[408123694,1773160239075,-1283.18830784,0.00017968,2]
[408123696,1773160239084,-1500.0,0.00017968,2]
[408123698,1773160239094,-1500.0,0.00017968,2]
[408123700,1773160239104,-1500.0,0.00017968,2]
[408123702,1773160239114,-1500.0,0.00017968,2]
[408123704,1773160239122,-3810.42098742,0.00017996,2]
[408123706,1773160239131,-500.0,0.00017999,2]
[408123709,1773160239141,-500.0,0.00017999,2]
[408123711,1773160239151,-500.0,0.00017999,2]
[408123712,1773160239160,-500.0,0.00017999,2]
[408123714,1773160239169,-150.81923528,0.00017999,2]
[408123717,1773160239179,-500.0,0.00017999,2]
[408123719,1773160239190,-11694.20890913,0.00018012,2]
[408123721,1773160239199,-1234.14,0.00018019,2]
[408123722,1773160239208,-930.3724,0.0001803,2]
[408123725,1773160239217,-4796.1704,0.0001803,2]
[408123727,1773160239227,-1403.21204333,0.00018037,2]
[408123729,1773160239236,-14486.38173995,0.00018041,2]
[408123731,1773160239246,-500.0,0.00018054,2]
[408123733,1773160239256,-500.0,0.00018054,2]
[408123735,1773160239265,-500.0,0.00018054,2]
[408123737,1773160239274,-500.0,0.00018054,2]
[408123739,1773160239283,-505.89870401,0.00018054,2]
[408123741,1773160239292,-2000.0,0.0001809,2]
[408123743,1773160239301,-500.0,0.00018109,2]
[408123745,1773160239310,-500.0,0.00018109,2]
[408123747,1773160239320,-302.52670452,0.00018109,2]
[408123749,1773160239329,-500.0,0.00018109,2]
[408123751,1773160239338,-500.0,0.00018129,2]
[408123753,1773160239347,-500.0,0.00018129,2]
[408123755,1773160239356,-500.0,0.0001813,2]
[408123757,1773160239366,-2513.77,0.00018131,2]
[408123759,1773160239376,-166.66,0.00018131,2]
[408123761,1773160239385,-500.0,0.00018136,2]
[408123763,1773160239394,-13952.29747021,0.00018137,2]
[408123765,1773160239407,-274.5312801,0.00018137,2]
[408123888,1773160240810,-3025.53124969,0.00018137,2]
[408123890,1773160240819,-153.09936437,0.00018139,2]
[408123892,1773160240832,-2351.0,0.00018148,2]
[408123894,1773160240842,-552.0,0.00018163,2]
[408123896,1773160240852,-300.0,0.00018163,2]
[408123898,1773160240861,-300.0,0.00018163,2]
[408123900,1773160240872,-1123.07,0.00018191,2]
[408123902,1773160240881,-1057.2304,0.000182,2]
[408123904,1773160240891,-12199.23714625,0.0001823,3]
[408123906,1773160240900,-9000.0,0.00018246,2]
[408123908,1773160240910,-1499.71757192,0.00018246,2]
[408123910,1773160240919,-252.67365585,0.00018246,2]
[408123912,1773160240929,-695.39793187,0.00018246,2]
[408123914,1773160240938,-1377.42282659,0.00018246,2]
[408123916,1773160240948,-250.0,0.00018246,2]
[408123918,1773160240957,-1000.0,0.00018246,2]
[408123920,1773160240966,-250.0,0.00018246,2]
[408123952,1773160241244,-250.0,0.00018246,2]
[408123954,1773160241254,-250.0,0.00018246,2]
[408123956,1773160241263,-250.0,0.00018246,2]
[408123958,1773160241272,-1128.72123701,0.00018246,2]
[408123960,1773160241281,-1500.0,0.00018246,2]
[408123962,1773160241290,-250.0,0.00018246,2]
[408123964,1773160241299,-1500.0,0.00018246,2]
[408123966,1773160241309,-250.0,0.00018246,2]
[408123968,1773160241318,-1500.0,0.00018246,2]
[408123970,1773160241327,-250.0,0.00018246,2]
[408123972,1773160241336,-1500.0,0.00018246,2]
[408123974,1773160241345,-1500.0,0.00018246,2]
[408123976,1773160241355,-1500.0,0.00018246,2]
[408123978,1773160241364,-1500.0,0.00018246,2]
[408123980,1773160241373,-1500.0,0.00018246,2]
[408123982,1773160241383,-1500.0,0.00018246,2]
[408123984,1773160241393,-1500.0,0.00018246,2]
[408123986,1773160241402,-1500.0,0.00018246,2]
[408123988,1773160241411,-1500.0,0.00018246,2]
[408123990,1773160241420,-3000.0,0.00018246,2]
[408123992,1773160241430,-3000.0,0.00018246,2]
[408123994,1773160241439,-578.20924308,0.00018246,2]
[408123996,1773160241448,-3000.0,0.00018246,2]
[408123998,1773160241458,-10000.0,0.00018246,2]
[408124000,1773160241467,-743.50770149,0.00018246,2]
[408124002,1773160241476,-10000.0,0.00018246,2]
[408124004,1773160241486,-500.0,0.00018246,2]
[408124006,1773160241495,-6780.786492,0.00018246,2]
[408124008,1773160241504,-174.61919141,0.00018246,2]
[408124010,1773160241513,-151.0,0.00018246,2]
[408124012,1773160241523,-250.0,0.00018246,2]
[408124014,1773160241533,-250.0,0.00018246,2]
[408124016,1773160241543,-250.0,0.00018246,2]
[408124018,1773160241551,-250.0,0.00018246,2]
[408124020,1773160241561,-250.0,0.00018246,2]
[408124022,1773160241570,-200.0,0.00018246,2]
[408124024,1773160241582,-250.0,0.00018246,2]
[408124026,1773160241591,-250.0,0.00018246,2]
[408124028,1773160241600,-250.0,0.00018246,2]
[408124030,1773160241609,-250.0,0.00018246,2]
[408124032,1773160241618,-1000.0,0.00018246,2]
[408124034,1773160241627,-250.0,0.00018246,2]
[408124036,1773160241636,-773.73733787,0.00018246,2]
[408124038,1773160241646,-250.0,0.00018246,2]
[408124040,1773160241655,-250.0,0.00018246,2]
[408124042,1773160241664,-1500.0,0.00018246,2]
[408124044,1773160241673,-1500.0,0.00018246,2]
[408124046,1773160241682,-1500.0,0.00018246,2]
[408124048,1773160241691,-1500.0,0.00018246,2]
[408124050,1773160241700,-1500.0,0.00018246,2]
[408124052,1773160241710,-266.11523531,0.00018246,2]
[408124054,1773160241719,-1500.0,0.00018246,2]
[408124056,1773160241728,-1500.0,0.00018246,2]
[408124058,1773160241737,-1500.0,0.00018246,2]
[408124060,1773160241746,-1500.0,0.00018246,2]
[408124062,1773160241756,-1500.0,0.00018246,2]
[408124064,1773160241765,-541.02516385,0.00018246,2]
[408124066,1773160241774,-668.65185757,0.00018246,2]
[408124068,1773160241784,-262.90206542,0.00018246,2]
[408124070,1773160241795,-284.23461193,0.00018246,2]
[408124072,1773160241807,-161.29568333,0.00018273,2]
[408124074,1773160241816,-500.0,0.00018273,2]
[408124076,1773160241826,-500.0,0.00018273,2]
[408124078,1773160241837,-500.0,0.00018273,2]
[408124080,1773160241845,-500.0,0.00018273,2]
[408124082,1773160241855,-500.0,0.00018299,2]
[408124084,1773160241864,-500.0,0.00018299,2]
[408124086,1773160241873,-500.0,0.00018299,2]
[408124088,1773160241883,-500.0,0.00018299,2]
[408124090,1773160241893,-500.0,0.00018299,2]
[408124092,1773160241903,-500.0,0.00018299,2]
[408124094,1773160241912,-500.0,0.00018299,2]
[408124096,1773160241921,-500.0,0.00018299,2]
[408124098,1773160241930,-500.0,0.00018299,2]
[408124100,1773160241939,-500.0,0.00018299,2]
[408124102,1773160241948,-500.0,0.00018299,2]
[408124104,1773160241963,-196.82,0.00018299,2]
[408124106,1773160241972,-500.0,0.00018299,2]
[408124108,1773160241981,-500.0,0.00018299,2]
[408124110,1773160241990,-500.0,0.00018299,2]
[408124112,1773160242000,-500.0,0.00018299,2]
[408124113,1773160242008,-500.0,0.00018299,2]
[408124115,1773160242018,-500.0,0.00018299,2]
[408124117,1773160242027,-500.0,0.00018299,2]
[408124119,1773160242036,-500.0,0.00018299,2]
[408124122,1773160242046,-500.0,0.00018299,2]
[408124123,1773160242055,-500.0,0.00018299,2]
[408124125,1773160242065,-500.0,0.00018299,2]
[408124127,1773160242074,-502.85950902,0.00018299,2]
[408124130,1773160242084,-500.0,0.00018299,2]
[408124132,1773160242094,-500.0,0.00018299,2]
[408124133,1773160242105,-500.0,0.00018299,2]
[408124136,1773160242114,-500.0,0.00018299,2]
[408124138,1773160242124,-500.0,0.00018299,2]
[408124139,1773160242135,-500.0,0.00018299,2]
[408124141,1773160242145,-500.0,0.00018299,2]
[408124144,1773160242154,-500.0,0.00018299,2]
[408124145,1773160242163,-500.0,0.00018299,2]
[408124148,1773160242174,-500.0,0.00018299,2]
[408124150,1773160242183,-500.0,0.00018299,2]
[408124152,1773160242193,-500.0,0.00018299,2]
[408124154,1773160242203,-500.0,0.00018299,2]
[408124156,1773160242212,-500.0,0.00018299,2]
[408124158,1773160242221,-500.0,0.00018299,2]
[408124160,1773160242230,-151.0,0.00018301,2]
[408124162,1773160242240,-13100.79789695,0.0001833,4]
[408124164,1773160242250,-11694.20890913,0.00018335,2]
[408124166,1773160242260,-246.69,0.00018339,2]
[408124168,1773160242270,-151.0,0.00018356,2]
[408124170,1773160242279,-413.18,0.00018356,2]
[408124172,1773160242288,-14486.38173995,0.00018358,2]
[408124174,1773160242297,-13538.04127362,0.000184,4]
[408124176,1773160242306,-3810.42098742,0.00018403,2]
[408124178,1773160242315,-151.0,0.00018411,2]
[408124179,1773160242324,-1123.07,0.00018465,2]
[408124182,1773160242333,-151.0,0.00018466,2]
[408124183,1773160242343,-436.27017402,0.00018488,2]
[408124185,1773160242352,-2000.0,0.00018516,2]
[408124188,1773160242361,-2000.0,0.00018516,2]
[408124190,1773160242371,-2000.0,0.00018516,2]
[408124191,1773160242380,-2000.0,0.00018516,2]
[408124194,1773160242390,-151.0,0.00018521,2]
[408124195,1773160242399,-239.55,0.00018531,2]
[408124198,1773160242408,-2513.77,0.00018562,2]
[408124200,1773160242418,-510.0,0.00018575,3]
[408124202,1773160242429,-151.0,0.00018576,2]
[408124204,1773160242439,-500.0,0.00018587,2]
[408124206,1773160242448,-619.28774558,0.00018587,2]
[408124208,1773160242457,-500.0,0.00018587,2]
[408124209,1773160242467,-500.0,0.00018587,2]
[408124212,1773160242483,-500.0,0.00018587,2]
[408124213,1773160242496,-500.0,0.00018587,2]
[408124215,1773160242507,-606.48,0.00018587,2]
[408124216,1773160242518,-500.0,0.00018587,2]
[408124217,1773160242529,-243.61,0.00018587,2]
[408124218,1773160242539,-500.0,0.00018587,2]
[408124219,1773160242548,-500.0,0.00018587,2]
[408124220,1773160242559,-500.0,0.00018587,2]
[408124221,1773160242572,-327.35,0.00018587,2]
[408124222,1773160242583,-514.75306544,0.00018587,2]
[408124223,1773160242593,-500.0,0.00018587,2]
[408124224,1773160242604,-500.0,0.00018587,2]
[408124225,1773160242614,-2979.0,0.00018588,2]
[408124226,1773160242623,-200709.37920738,0.00018588,2]
[408124227,1773160242639,-194368.42265422,0.00018588,2]
[408124228,1773160242648,-163.9232871,0.00018588,2]
[408124229,1773160242658,-151.0,0.00018588,2]
[408124230,1773160242668,-151.0,0.00018588,2]
[408124231,1773160242678,-151.0,0.00018588,2]
[408124232,1773160242687,-151.0,0.00018588,2]
[408124233,1773160242697,-151.0,0.00018631,2]
[408124234,1773160242707,-11694.20890913,0.00018658,2]
[408124235,1773160242716,-14486.38173995,0.00018675,2]
[408124236,1773160242726,-500.0,0.00018685,7]
[408124237,1773160242735,-151.0,0.00018686,2]
[408124238,1773160242744,-1123.07,0.00018739,2]
[408124239,1773160242753,-151.0,0.00018741,2]
[408124240,1773160242762,-1428.38747117,0.00018794,2]
[408124241,1773160242771,-1000.0,0.00018794,2]
[408124242,1773160242780,-869.39421668,0.00018794,2]
[408124243,1773160242791,-181.08010149,0.00018794,2]
[408124244,1773160242804,-200.0,0.00018794,2]
[408124245,1773160242814,-485.4185,0.00018794,2]
[408124246,1773160242823,-272.62944185,0.00018794,2]
[408124247,1773160242832,-151.0,0.00018796,2]
[408124248,1773160242841,-10000.0,0.000188,2]
[408124249,1773160242851,-3810.42098742,0.00018811,2]
[408124250,1773160242860,-1000.0,0.00018821,2]
[408124251,1773160242871,-1000.0,0.00018821,2]
[408124252,1773160242880,-1000.0,0.00018821,2]
[408124253,1773160242890,-1000.0,0.00018821,2]
[408124254,1773160242899,-428.0,0.00018824,2]
[408124255,1773160242908,-489.72,0.00018838,2]
[408124256,1773160242918,-168.0,0.00018847,2]
[408124257,1773160242929,-151.0,0.00018851,2]
[408124258,1773160242939,-155.0,0.00018872,2]
[408124259,1773160242949,-166.66,0.00018874,2]
[408124260,1773160242960,-1234.14,0.00018877,2]
[408124261,1773160242971,-500.0,0.00018899,2]
[408124262,1773160242980,-500.0,0.00018899,2]
[408124263,1773160242990,-3026.15855569,0.000189,2]
[408124264,1773160242999,-3200.0,0.000189,6]
[408124265,1773160243018,-500.0,0.00018959,7]
[408124267,1773160243032,-177.0,0.00018959,2]
[408124268,1773160243044,-489.72,0.00018965,2]
[408124269,1773160243055,-11694.20890913,0.0001898,2]
[408124271,1773160243066,-14486.38173995,0.00018992,2]
[408124273,1773160243078,-2513.77,0.00018994,2]
[408124275,1773160243088,-17084.12482044,0.00019,2]
[408124278,1773160243100,-2814.36,0.00019,2]
[408124280,1773160243110,-202.15363139,0.00019,2]
[408124282,1773160243119,-688.97898661,0.00019,2]
[408124284,1773160243129,-4190.0,0.00019,2]
[408124286,1773160243140,-21925.96350167,0.00019,2]
[408124288,1773160243154,-500.0,0.00019,5]
[408124290,1773160243176,-493.69575205,0.00019,2]
[408124292,1773160243198,-1123.07,0.00019013,2]
[408124293,1773160243217,-168.0,0.00019021,2]
[408124294,1773160243230,-299.95430794,0.00019023,2]
[408124295,1773160243243,-339.21,0.00019034,2]
[408124296,1773160243256,-1279.0,0.00019051,2]
[408124297,1773160243267,-922.0,0.00019051,2]
[408124298,1773160243279,-1213.0,0.00019051,2]
[408124299,1773160243291,-619.0,0.00019051,2]
[408124300,1773160243302,-1342.0,0.00019051,2]
[408124301,1773160243315,-2461.0,0.00019051,2]
[408124302,1773160243327,-436.27017401,0.00019057,2]
[408124303,1773160243342,-2279.0,0.00019061,2]
[408124304,1773160243355,-1908.0,0.00019061,2]
[408124305,1773160243369,-1915.57056961,0.00019064,2]
[408124306,1773160243380,-2500.0,0.00019064,2]
[408124307,1773160243393,-959.11608175,0.00019064,2]
[408124308,1773160243405,-2500.0,0.00019064,2]
[408124309,1773160243416,-150.0,0.00019079,2]
[408124310,1773160243432,-202.690585,0.00019081,2]
[408124311,1773160243444,-489.72,0.00019092,2]
[408124312,1773160243456,-868.24,0.00019106,2]
[408124313,1773160243467,-168.0,0.0001911,2]
[408124314,1773160243480,-350.0,0.00019121,3]
[408124315,1773160243492,-1043.67,0.00019178,2]
[408124316,1773160243504,-3000.0,0.00019178,2]
[408124317,1773160243517,-3000.0,0.00019178,2]
[408124318,1773160243530,-3000.0,0.00019178,2]
[408124319,1773160243541,-3000.0,0.00019178,2]
[408124320,1773160243551,-3000.0,0.00019178,2]
[408124321,1773160243561,-3000.0,0.00019178,2]
[408124322,1773160243574,-3000.0,0.00019178,2]
[408124323,1773160243585,-3027.62924179,0.00019178,2]
[408124324,1773160243595,-362.0,0.00019178,5]
[408124325,1773160243605,-2052.0,0.00019178,2]
[408124326,1773160243618,-207.334735,0.00019178,2]
[408124327,1773160243628,-260.9008,0.00019178,2]
[408124328,1773160243639,-151.0,0.00019178,2]
[408124329,1773160243650,-151.0,0.00019178,2]
[408124330,1773160243662,-186.97664,0.00019178,2]
[408124331,1773160243673,-151.0,0.00019178,2]
[408124332,1773160243683,-151.0,0.00019178,2]
[408124333,1773160243695,-151.0,0.00019178,2]
[408124334,1773160243707,-151.0,0.00019178,2]
[408124335,1773160243719,-291.106941,0.00019178,2]
[408124336,1773160243822,-291.106941,0.00019178,2]
[408124337,1773160243832,-291.106941,0.00019178,2]
[408124338,1773160243843,-291.106941,0.00019178,2]
[408124339,1773160243854,-151.0,0.00019178,2]
[408124340,1773160243864,-151.0,0.00019178,2]
[408124341,1773160243875,-151.0,0.00019178,2]
[408124342,1773160243888,-151.0,0.00019178,2]
[408124343,1773160243898,-151.0,0.00019178,2]
[408124344,1773160243909,-151.0,0.00019178,2]
[408124345,1773160243920,-183.911991,0.00019178,2]
[408124346,1773160243929,-183.911991,0.00019178,2]
[408124347,1773160243938,-179.928038,0.00019178,2]
[408124348,1773160243947,-183.911991,0.00019178,2]
[408124349,1773160243957,-179.928038,0.00019178,2]
[408124350,1773160243966,-183.911991,0.00019178,2]
[408124351,1773160243975,-179.928038,0.00019178,2]
[408124352,1773160243984,-179.928038,0.00019178,2]
[408124353,1773160243994,-151.0,0.00019178,2]
[408124354,1773160244004,-151.0,0.00019178,2]
[408124355,1773160244014,-151.0,0.00019178,2]
[408124356,1773160244023,-151.0,0.00019178,2]
[408124357,1773160244032,-151.0,0.00019178,2]
[408124358,1773160244042,-151.0,0.00019178,2]
[408124359,1773160244051,-180.500636,0.00019178,2]
[408124360,1773160244061,-151.0,0.00019178,2]
[408124361,1773160244070,-151.0,0.00019178,2]
[408124362,1773160244079,-787.0,0.00019178,2]
[408124363,1773160244088,-558.0,0.00019178,2]
[408124364,1773160244098,-246.69,0.00019212,2]
[408124365,1773160244107,-3810.42098742,0.00019218,2]
[408124366,1773160244117,-489.72,0.00019219,2]
[408124367,1773160244126,-500.0,0.00019226,2]
[408124368,1773160244136,-500.0,0.00019233,7]
[408124369,1773160244148,-150.0,0.00019235,2]
[408124370,1773160244157,-700.0,0.00019252,3]
[408124371,1773160244167,-1000.0,0.00019274,2]
[408124372,1773160244176,-1123.07,0.00019287,2]
[408124373,1773160244186,-11694.20890913,0.00019303,2]
[408124375,1773160244196,-14486.38173995,0.00019309,2]
[408124377,1773160244205,-151.0,0.00019313,2]
[408124379,1773160244214,-152.0,0.00019313,2]
[408124381,1773160244223,-1516.0,0.00019313,2]
[408124383,1773160244233,-1516.0,0.00019313,2]
[408124386,1773160244242,-1516.0,0.00019313,2]
[408124388,1773160244251,-1516.0,0.00019313,2]
[408124390,1773160244260,-1516.0,0.00019313,2]
[408124391,1773160244270,-942.67941492,0.00019313,2]
[408124392,1773160244278,-500.0,0.00019339,2]
[408124393,1773160244288,-500.0,0.00019339,2]
[408124394,1773160244297,-1000.0,0.00019342,2]
[408124395,1773160244307,-187.78006525,0.00019342,2]
[408124396,1773160244316,-200.0,0.00019342,2]
[408124397,1773160244325,-282.71673119,0.00019342,2]
[408124398,1773160244334,-489.72,0.00019346,2]
[408124399,1773160244344,-151.0,0.00019368,2]
[408124400,1773160244353,-151.0,0.00019368,2]
[408124401,1773160244362,-151.0,0.00019368,2]
[408124402,1773160244372,-151.0,0.00019368,2]
[408124403,1773160244382,-151.0,0.00019368,2]
[408124404,1773160244394,-264.581631,0.00019368,2]
[408124405,1773160244403,-151.0,0.00019368,2]
[408124406,1773160244413,-1500.0,0.00019368,2]
[408124407,1773160244422,-1500.0,0.00019368,2]
[408124408,1773160244431,-1500.0,0.00019368,2]
[408124409,1773160244441,-1500.0,0.00019368,2]
[408124410,1773160244450,-350.0,0.00019393,2]
[408124411,1773160244459,-164.431,0.0001942,2]
[408124412,1773160244469,-225.0056,0.0001943,2]
[408124413,1773160244478,-225.00561,0.0001943,2]
[408124414,1773160244488,-268.96748512,0.00019452,2]
[408124415,1773160244497,-489.72,0.00019473,2]
[408124416,1773160244506,-168.0,0.00019479,2]
[408124417,1773160244516,-166.66,0.00019498,2]
[408124418,1773160244526,-2000.0,0.000195,2]
[408124419,1773160244536,-350.0,0.00019503,2]
[408124420,1773160244545,-500.0,0.00019507,7]
[408124421,1773160244555,-500.0,0.00019519,2]
[408124422,1773160244564,-200.0,0.00019519,2]
[408124423,1773160244573,-1000.0,0.00019548,2]
[408124424,1773160244583,-168.0,0.00019556,2]
[408124425,1773160244592,-1123.07,0.00019561,2]
[408124426,1773160244601,-439.0,0.00019562,2]
[408124427,1773160244610,-1187.61779703,0.00019573,2]
[408124428,1773160244619,-1061.27454403,0.00019599,5]
[408124429,1773160244628,-292.21,0.000196,30]
[408124430,1773160244638,-1061.27454403,0.000196,5]
[408124431,1773160244650,-1061.27454403,0.000196,5]
[408124432,1773160244659,-1061.27454404,0.000196,5]
[408124433,1773160244668,-500.0,0.000196,2]
[408124434,1773160244677,-500.0,0.000196,2]
[408124435,1773160244686,-1054.83471368,0.000196,2]
[408124436,1773160244696,-1107.04380668,0.000196,2]
[408124437,1773160244705,-1108.26809519,0.000196,2]
[408124438,1773160244714,-1000.34904604,0.000196,2]
[408124439,1773160244723,-1026.51178382,0.000196,2]
[408124440,1773160244732,-1132.06716135,0.000196,2]
[408124441,1773160244741,-1118.65142784,0.000196,2]
[408124442,1773160244750,-1089.64884899,0.000196,2]
[408124443,1773160244760,-1052.080944,0.000196,2]
[408124444,1773160244770,-1082.80687912,0.000196,2]
[408124445,1773160244781,-1038.41636731,0.000196,2]
[408124446,1773160244791,-1060.56733643,0.000196,2]
[408124447,1773160244805,-1143.45055609,0.000196,2]
[408124448,1773160244815,-1055.33648585,0.000196,2]
[408124449,1773160244824,-1138.20121577,0.000196,2]
[408124450,1773160244833,-1018.33148485,0.000196,2]
[408124451,1773160244842,-1067.09402839,0.000196,2]
[408124452,1773160244851,-1138.97541517,0.000196,2]
[408124453,1773160244860,-1090.49922369,0.000196,2]
[408124454,1773160244871,-1012.3445801,0.000196,2]
[408124455,1773160244880,-1106.05263324,0.000196,2]
[408124456,1773160244890,-1109.57263479,0.000196,2]
[408124457,1773160244900,-1135.77721754,0.000196,2]
[408124458,1773160244910,-1066.39637133,0.000196,2]
[408124459,1773160244919,-1024.13727198,0.000196,2]
[408124460,1773160244930,-1010.75923683,0.000196,2]
[408124461,1773160244939,-1119.6232484,0.000196,2]
[408124462,1773160244949,-1011.57976749,0.000196,2]
[408124463,1773160244959,-1050.6969777,0.000196,2]
[408124464,1773160244970,-1008.01158617,0.000196,2]
[408124465,1773160244980,-1145.57191637,0.000196,2]
[408124466,1773160244991,-151.0,0.000196,2]
[408124467,1773160244999,-4300.0,0.000196,7]
[408124468,1773160245009,-151.0,0.000196,2]
[408124469,1773160245020,-151.0,0.000196,2]
[408124470,1773160245031,-151.0,0.000196,2]
[408124471,1773160245042,-291.106941,0.000196,2]
[408124472,1773160245051,-291.106941,0.000196,2]
[408124473,1773160245060,-291.106941,0.000196,2]
[408124474,1773160245068,-291.106941,0.000196,2]
[408124475,1773160245078,-151.0,0.000196,2]
[408124476,1773160245087,-151.0,0.000196,2]
[408124477,1773160245096,-151.0,0.000196,2]
[408124478,1773160245105,-275.887746,0.000196,2]
[408124479,1773160245114,-151.0,0.000196,2]
[408124480,1773160245123,-183.911991,0.000196,2]
[408124481,1773160245132,-183.911991,0.000196,2]
[408124482,1773160245143,-179.928038,0.000196,2]
[408124483,1773160245152,-183.911991,0.000196,2]
[408124484,1773160245161,-179.928038,0.000196,2]